[Event "Titled Tuesday Blitz May 03 Early 2022"]
[White "Wagh Suyog"]
[Black "Skuhala, Barbara"]
[WhiteFideId "25071688"]
[BlackFideId "14605465"]
[WhiteElo "2181"]
[BlackElo "2155"]
[Result "1-0"]
[Round "02"]
[TimeControl "180+1"]
[Date "2022.05.03"]
[WhiteClock "0:01:25"]
[BlackClock "0:02:23"]

1. e4 {[%clk 0:03:00]}  c5 {[%clk 0:02:57]} 2. Nf3 {[%clk 0:03:00]}  d6 {[%clk 0:02:57]} 3. d4 {[%clk 0:02:59]}  cxd4 {[%clk 0:02:57]} 4. Nxd4 {[%clk 0:02:59]}  Nf6 {[%clk 0:02:56]} 5. Nc3 {[%clk 0:02:59]}  a6 {[%clk 0:02:56]} 6. Be3 {[%clk 0:02:51]}  e5 {[%clk 0:02:56]} 7. Nb3 {[%clk 0:02:51]}  Be7 {[%clk 0:02:56]} 8. f3 {[%clk 0:02:51]}  Be6 {[%clk 0:02:56]} 9. Qd2 {[%clk 0:02:52]}  Nbd7 {[%clk 0:02:56]} 10. O-O-O {[%clk 0:02:51]}  Rc8 {[%clk 0:02:55]} 11. g4 {[%clk 0:02:50]}  b5 {[%clk 0:02:54]} 12. g5 {[%clk 0:02:49]}  Nh5 {[%clk 0:02:52]} 13. Kb1 {[%clk 0:02:44]}  Qc7 {[%clk 0:02:52]} 14. Nd5 {[%clk 0:02:41]}  Bxd5 {[%clk 0:02:52]} 15. exd5 {[%clk 0:02:41]}  Nb6 {[%clk 0:02:52]} 16. Bxb6 {[%clk 0:02:08]}  Qxb6 {[%clk 0:02:51]} 17. Na5 {[%clk 0:02:05]}  Nf4 {[%clk 0:02:48]} 18. h4 {[%clk 0:02:00]}  Nxd5 {[%clk 0:02:39]} 19. Bh3 {[%clk 0:01:55]}  Rd8 {[%clk 0:02:34]} 20. Qxd5 {[%clk 0:01:52]}  Qxa5 {[%clk 0:02:34]} 21. Qc6+ {[%clk 0:01:52]}  Kf8 {[%clk 0:02:33]} 22. f4 {[%clk 0:01:52]}  exf4 {[%clk 0:02:29]} 23. Rhe1 {[%clk 0:01:52]}  Qb4 {[%clk 0:02:27]} 24. Rxe7 {[%clk 0:01:47]}  Kxe7 {[%clk 0:02:27]} 25. Qc7+ {[%clk 0:01:45]}  Ke8 {[%clk 0:02:27]} 26. Bf5 {[%clk 0:01:28]}  g6 {[%clk 0:02:23]} 27. c3 {[%clk 0:01:25]} 1-0


[Site "https://www.chess.com"]

[Event "Titled Tuesday Blitz May 03 Early 2022"]
[White "Yurovskykh, Oleksandr"]
[Black "Dilmukhametov, Artur"]
[WhiteFideId "14134020"]
[BlackFideId "24179922"]
[WhiteElo "2292"]
[BlackElo "2244"]
[Result "1-0"]
[Round "02"]
[TimeControl "180+1"]
[Date "2022.05.03"]
[WhiteClock "0:01:42"]
[BlackClock "0:00:02"]

1. d4 {[%clk 0:03:00]}  Nf6 {[%clk 0:02:51]} 2. Nf3 {[%clk 0:02:59]}  g6 {[%clk 0:02:50]} 3. Bg5 {[%clk 0:02:58]}  Bg7 {[%clk 0:02:50]} 4. Nbd2 {[%clk 0:02:59]}  O-O {[%clk 0:02:49]} 5. c3 {[%clk 0:02:59]}  d6 {[%clk 0:02:47]} 6. e4 {[%clk 0:03:00]}  Nbd7 {[%clk 0:02:42]} 7. Be2 {[%clk 0:03:00]}  e5 {[%clk 0:02:36]} 8. dxe5 {[%clk 0:03:01]}  dxe5 {[%clk 0:02:34]} 9. O-O {[%clk 0:03:01]}  Re8 {[%clk 0:02:30]} 10. Re1 {[%clk 0:03:00]}  b6 {[%clk 0:02:26]} 11. Bf1 {[%clk 0:02:56]}  Nc5 {[%clk 0:02:24]} 12. Qc2 {[%clk 0:02:56]}  Bb7 {[%clk 0:02:23]} 13. b4 {[%clk 0:02:37]}  Ncd7 {[%clk 0:02:06]} 14. a4 {[%clk 0:02:35]}  Qc8 {[%clk 0:02:04]} 15. a5 {[%clk 0:02:31]}  h6 {[%clk 0:01:56]} 16. Bh4 {[%clk 0:02:30]}  g5 {[%clk 0:01:39]} 17. Bg3 {[%clk 0:02:30]}  a6 {[%clk 0:01:37]} 18. Nc4 {[%clk 0:02:18]}  Nh5 {[%clk 0:01:18]} 19. Ne3 {[%clk 0:02:17]}  Nxg3 {[%clk 0:01:17]} 20. hxg3 {[%clk 0:02:17]}  b5 {[%clk 0:01:10]} 21. Nf5 {[%clk 0:02:16]}  c5 {[%clk 0:00:52]} 22. Nd6 {[%clk 0:02:13]}  Qc7 {[%clk 0:00:47]} 23. Nxe8 {[%clk 0:02:13]}  Rxe8 {[%clk 0:00:47]} 24. Rac1 {[%clk 0:02:00]}  c4 {[%clk 0:00:43]} 25. Nh2 {[%clk 0:01:53]}  Qb8 {[%clk 0:00:40]} 26. Ng4 {[%clk 0:01:52]}  Nf6 {[%clk 0:00:37]} 27. Nxf6+ {[%clk 0:01:52]}  Bxf6 {[%clk 0:00:37]} 28. Be2 {[%clk 0:01:52]}  Qa8 {[%clk 0:00:36]} 29. Bg4 {[%clk 0:01:52]}  Kg7 {[%clk 0:00:33]} 30. Bf5 {[%clk 0:01:52]}  Qb8 {[%clk 0:00:24]} 31. Rcd1 {[%clk 0:01:53]}  Qc7 {[%clk 0:00:24]} 32. Rd2 {[%clk 0:01:52]}  Bc6 {[%clk 0:00:23]} 33. Red1 {[%clk 0:01:53]}  Rd8 {[%clk 0:00:21]} 34. Rxd8 {[%clk 0:01:53]}  Bxd8 {[%clk 0:00:21]} 35. Qd2 {[%clk 0:01:53]}  Be7 {[%clk 0:00:20]} 36. Qe3 {[%clk 0:01:51]}  Kf6 {[%clk 0:00:18]} 37. f3 {[%clk 0:01:51]}  h5 {[%clk 0:00:17]} 38. Kf2 {[%clk 0:01:51]}  Qb7 {[%clk 0:00:11]} 39. Ke2 {[%clk 0:01:49]}  Bf8 {[%clk 0:00:08]} 40. Rh1 {[%clk 0:01:48]}  Bh6 {[%clk 0:00:04]} 41. Rxh5 {[%clk 0:01:47]}  Kg7 {[%clk 0:00:04]} 42. Qc5 {[%clk 0:01:44]}  Qc7 {[%clk 0:00:02]} 43. Rxh6 {[%clk 0:01:42]} 1-0


[Site "https://www.chess.com"]

[Event "Titled Tuesday Blitz May 03 Early 2022"]
[White "Zhao, Jun"]
[Black "Khabinets, Ivan"]
[WhiteFideId "8602522"]
[BlackFideId "14115980"]
[WhiteElo "2547"]
[BlackElo "2114"]
[Result "1-0"]
[Round "02"]
[TimeControl "180+1"]
[Date "2022.05.03"]
[WhiteClock "0:00:13"]
[BlackClock "0:00:04"]

1. e4 {[%clk 0:03:00]}  c5 {[%clk 0:03:00]} 2. Nf3 {[%clk 0:03:00]}  d6 {[%clk 0:03:01]} 3. c3 {[%clk 0:02:57]}  Nf6 {[%clk 0:03:01]} 4. h3 {[%clk 0:02:57]}  Nc6 {[%clk 0:03:01]} 5. Bd3 {[%clk 0:02:57]}  g6 {[%clk 0:03:01]} 6. Bc2 {[%clk 0:02:57]}  e5 {[%clk 0:03:01]} 7. O-O {[%clk 0:02:55]}  Bg7 {[%clk 0:03:01]} 8. d3 {[%clk 0:02:52]}  O-O {[%clk 0:03:00]} 9. Bg5 {[%clk 0:02:51]}  h6 {[%clk 0:03:00]} 10. Bxf6 {[%clk 0:02:52]}  Bxf6 {[%clk 0:03:01]} 11. Nbd2 {[%clk 0:02:52]}  Be6 {[%clk 0:03:02]} 12. Bb3 {[%clk 0:02:52]}  d5 {[%clk 0:02:55]} 13. Re1 {[%clk 0:02:44]}  Bg7 {[%clk 0:02:54]} 14. Qc2 {[%clk 0:02:33]}  Re8 {[%clk 0:02:53]} 15. Re2 {[%clk 0:02:27]}  Rc8 {[%clk 0:02:53]} 16. exd5 {[%clk 0:02:25]}  Bxd5 {[%clk 0:02:53]} 17. Rae1 {[%clk 0:02:26]}  b6 {[%clk 0:02:47]} 18. Bc4 {[%clk 0:02:01]}  Qd7 {[%clk 0:02:39]} 19. Qa4 {[%clk 0:01:59]}  Rcd8 {[%clk 0:02:26]} 20. Bb5 {[%clk 0:01:59]}  Qd6 {[%clk 0:02:21]} 21. d4 {[%clk 0:01:55]}  cxd4 {[%clk 0:02:16]} 22. cxd4 {[%clk 0:01:55]}  a6 {[%clk 0:01:57]} 23. Bxc6 {[%clk 0:01:31]}  Bxc6 {[%clk 0:01:55]} 24. Qxa6 {[%clk 0:01:32]}  exd4 {[%clk 0:01:26]} 25. Rxe8+ {[%clk 0:01:17]}  Bxe8 {[%clk 0:01:19]} 26. Nc4 {[%clk 0:01:17]}  Qb4 {[%clk 0:01:09]} 27. Qxb6 {[%clk 0:01:12]}  Qxb6 {[%clk 0:01:05]} 28. Nxb6 {[%clk 0:01:12]}  d3 {[%clk 0:01:06]} 29. Nc4 {[%clk 0:01:12]}  Bb5 {[%clk 0:01:00]} 30. Nfd2 {[%clk 0:01:11]}  Rc8 {[%clk 0:00:57]} 31. b3 {[%clk 0:01:07]}  Bc3 {[%clk 0:00:56]} 32. Rd1 {[%clk 0:01:08]}  Re8 {[%clk 0:00:44]} 33. Ne3 {[%clk 0:01:01]}  f5 {[%clk 0:00:41]} 34. Ndc4 {[%clk 0:00:55]}  Bxc4 {[%clk 0:00:26]} 35. bxc4 {[%clk 0:00:37]}  f4 {[%clk 0:00:26]} 36. Nd5 {[%clk 0:00:38]}  Bd4 {[%clk 0:00:05]} 37. Nxf4 {[%clk 0:00:35]}  g5 {[%clk 0:00:05]} 38. Nxd3 {[%clk 0:00:35]}  Re2 {[%clk 0:00:06]} 39. c5 {[%clk 0:00:27]}  Rxa2 {[%clk 0:00:06]} 40. c6 {[%clk 0:00:27]}  Rc2 {[%clk 0:00:06]} 41. Rc1 {[%clk 0:00:27]}  Bxf2+ {[%clk 0:00:05]} 42. Kf1 {[%clk 0:00:27]}  Rxc1+ {[%clk 0:00:05]} 43. Nxc1 {[%clk 0:00:27]}  Bb6 {[%clk 0:00:06]} 44. Ke2 {[%clk 0:00:23]}  Kf7 {[%clk 0:00:07]} 45. Kd3 {[%clk 0:00:24]}  Ke6 {[%clk 0:00:07]} 46. Kc4 {[%clk 0:00:24]}  Kd6 {[%clk 0:00:06]} 47. Kb5 {[%clk 0:00:24]}  Be3 {[%clk 0:00:07]} 48. Nb3 {[%clk 0:00:16]}  h5 {[%clk 0:00:07]} 49. Na5 {[%clk 0:00:16]}  Bf2 {[%clk 0:00:06]} 50. Nc4+ {[%clk 0:00:16]}  Kc7 {[%clk 0:00:06]} 51. Ne5 {[%clk 0:00:15]}  Kd6 {[%clk 0:00:04]} 52. Nf7+ {[%clk 0:00:15]}  Kc7 {[%clk 0:00:04]} 53. Nxg5 {[%clk 0:00:15]}  h4 {[%clk 0:00:05]} 54. Ne6+ {[%clk 0:00:15]}  Kd6 {[%clk 0:00:05]} 55. Ng7 {[%clk 0:00:12]}  Kc7 {[%clk 0:00:05]} 56. Nf5 {[%clk 0:00:12]}  Be1 {[%clk 0:00:03]} 57. Kc5 {[%clk 0:00:13]}  Bf2+ {[%clk 0:00:04]} 58. Kd5 {[%clk 0:00:13]}  Kb6 {[%clk 0:00:04]} 59. Kd6 {[%clk 0:00:13]}  Bg3+ {[%clk 0:00:04]} 60. Nxg3 {[%clk 0:00:13]} 1-0


[Site "https://www.chess.com"]

[Event "Titled Tuesday Blitz May 03 Early 2022"]
[White "Abarca Gonzalez, Nicolas"]
[Black "Williams, Simon K"]
[WhiteFideId "3409422"]
[BlackFideId "404454"]
[WhiteElo "2504"]
[BlackElo "2468"]
[Result "1-0"]
[Round "03"]
[TimeControl "180+1"]
[Date "2022.05.03"]
[WhiteClock "0:00:14"]
[BlackClock "0:00:02"]

1. e4 {[%clk 0:03:00]}  e6 {[%clk 0:02:58]} 2. d4 {[%clk 0:02:55]}  d5 {[%clk 0:02:57]} 3. exd5 {[%clk 0:02:56]}  exd5 {[%clk 0:02:57]} 4. c4 {[%clk 0:02:57]}  Nf6 {[%clk 0:02:56]} 5. Nc3 {[%clk 0:02:57]}  Be7 {[%clk 0:02:53]} 6. Nf3 {[%clk 0:02:58]}  O-O {[%clk 0:02:52]} 7. cxd5 {[%clk 0:02:58]}  Nxd5 {[%clk 0:02:51]} 8. Bd3 {[%clk 0:02:59]}  Nc6 {[%clk 0:02:48]} 9. O-O {[%clk 0:02:58]}  Bg4 {[%clk 0:02:44]} 10. Be4 {[%clk 0:02:58]}  Nf6 {[%clk 0:02:40]} 11. Bxc6 {[%clk 0:02:58]}  bxc6 {[%clk 0:02:40]} 12. Qd3 {[%clk 0:02:57]}  c5 {[%clk 0:02:38]} 13. d5 {[%clk 0:02:51]}  c6 {[%clk 0:02:33]} 14. Ne5 {[%clk 0:02:50]}  cxd5 {[%clk 0:02:17]} 15. Nxg4 {[%clk 0:02:49]}  Nxg4 {[%clk 0:02:16]} 16. Nxd5 {[%clk 0:02:49]}  Nf6 {[%clk 0:02:01]} 17. Nxe7+ {[%clk 0:02:46]}  Qxe7 {[%clk 0:02:01]} 18. Bg5 {[%clk 0:02:44]}  Qe5 {[%clk 0:02:00]} 19. Bxf6 {[%clk 0:02:30]}  Qxf6 {[%clk 0:02:00]} 20. b3 {[%clk 0:02:29]}  Qd4 {[%clk 0:01:56]} 21. Qa6 {[%clk 0:02:24]}  Rfd8 {[%clk 0:01:50]} 22. Rac1 {[%clk 0:02:20]}  g6 {[%clk 0:01:34]} 23. Rc4 {[%clk 0:02:03]}  Qe5 {[%clk 0:01:09]} 24. Qa5 {[%clk 0:01:50]}  Rd5 {[%clk 0:01:03]} 25. g3 {[%clk 0:01:46]}  Qe7 {[%clk 0:00:51]} 26. Re1 {[%clk 0:01:43]}  Qd6 {[%clk 0:00:41]} 27. Rce4 {[%clk 0:01:43]}  Kg7 {[%clk 0:00:40]} 28. Qc3+ {[%clk 0:01:42]}  Rd4 {[%clk 0:00:39]} 29. Re7 {[%clk 0:01:37]}  a5 {[%clk 0:00:30]} 30. Rb7 {[%clk 0:01:30]}  a4 {[%clk 0:00:24]} 31. Ree7 {[%clk 0:01:23]}  Rf8 {[%clk 0:00:24]} 32. bxa4 {[%clk 0:01:17]}  h5 {[%clk 0:00:23]} 33. a5 {[%clk 0:01:14]}  h4 {[%clk 0:00:23]} 34. Qf3 {[%clk 0:01:11]}  Qf6 {[%clk 0:00:09]} 35. Qxf6+ {[%clk 0:00:55]}  Kxf6 {[%clk 0:00:10]} 36. a6 {[%clk 0:00:56]}  h3 {[%clk 0:00:10]} 37. Kf1 {[%clk 0:00:53]}  Ra4 {[%clk 0:00:09]} 38. a7 {[%clk 0:00:50]}  Rxa2 {[%clk 0:00:05]} 39. Rec7 {[%clk 0:00:45]}  Rd8 {[%clk 0:00:06]} 40. Rxf7+ {[%clk 0:00:36]}  Kg5 {[%clk 0:00:06]} 41. Rfd7 {[%clk 0:00:34]}  Rxd7 {[%clk 0:00:04]} 42. Rxd7 {[%clk 0:00:35]}  c4 {[%clk 0:00:05]} 43. f3 {[%clk 0:00:27]}  c3 {[%clk 0:00:05]} 44. Rc7 {[%clk 0:00:24]}  c2 {[%clk 0:00:05]} 45. Rc5+ {[%clk 0:00:20]}  Kh6 {[%clk 0:00:03]} 46. Rxc2 {[%clk 0:00:17]}  Rxa7 {[%clk 0:00:03]} 47. Kf2 {[%clk 0:00:17]}  Ra1 {[%clk 0:00:03]} 48. g4 {[%clk 0:00:17]}  Kg5 {[%clk 0:00:02]} 49. Kg3 {[%clk 0:00:16]}  Rg1+ {[%clk 0:00:02]} 50. Kxh3 {[%clk 0:00:16]}  Kf4 {[%clk 0:00:02]} 51. Rc6 {[%clk 0:00:11]}  g5 {[%clk 0:00:01]} 52. Rf6+ {[%clk 0:00:12]}  Ke3 {[%clk 0:00:02]} 53. Rf5 {[%clk 0:00:12]}  Kf2 {[%clk 0:00:02]} 54. Rxg5 {[%clk 0:00:11]}  Kxf3 {[%clk 0:00:02]} 55. Rf5+ {[%clk 0:00:12]}  Ke4 {[%clk 0:00:03]} 56. Rf8 {[%clk 0:00:12]}  Ke5 {[%clk 0:00:03]} 57. Kh4 {[%clk 0:00:13]}  Ke6 {[%clk 0:00:03]} 58. h3 {[%clk 0:00:13]}  Ke7 {[%clk 0:00:04]} 59. Rf2 {[%clk 0:00:13]}  Rh1 {[%clk 0:00:03]} 60. Rf3 {[%clk 0:00:13]}  Rg1 {[%clk 0:00:03]} 61. Kh5 {[%clk 0:00:13]}  Rb1 {[%clk 0:00:03]} 62. h4 {[%clk 0:00:13]}  Rb5+ {[%clk 0:00:02]} 63. g5 {[%clk 0:00:14]}  Rc5 {[%clk 0:00:02]} 64. Kh6 {[%clk 0:00:14]} 1-0


[Site "https://www.chess.com"]

[Event "Titled Tuesday Blitz May 03 Early 2022"]
[White "Aldokhin, Ivan"]
[Black "Chernomordik, Pavel"]
[WhiteFideId "24115720"]
[BlackFideId "2804530"]
[WhiteElo "2231"]
[BlackElo "2220"]
[Result "1-0"]
[Round "03"]
[TimeControl "180+1"]
[Date "2022.05.03"]
[WhiteClock "0:00:16"]
[BlackClock "0:00:07"]

1. e4 {[%clk 0:03:00]}  g6 {[%clk 0:02:58]} 2. d4 {[%clk 0:02:59]}  Bg7 {[%clk 0:02:57]} 3. Nc3 {[%clk 0:02:57]}  d6 {[%clk 0:02:57]} 4. Bg5 {[%clk 0:02:57]}  h6 {[%clk 0:02:56]} 5. Be3 {[%clk 0:02:54]}  a6 {[%clk 0:02:55]} 6. Qd2 {[%clk 0:02:50]}  b5 {[%clk 0:02:55]} 7. f4 {[%clk 0:02:43]}  Bb7 {[%clk 0:02:53]} 8. Bd3 {[%clk 0:02:43]}  Nd7 {[%clk 0:02:52]} 9. Nf3 {[%clk 0:02:40]}  c5 {[%clk 0:02:49]} 10. dxc5 {[%clk 0:02:29]}  Nxc5 {[%clk 0:02:45]} 11. Bxc5 {[%clk 0:02:26]}  dxc5 {[%clk 0:02:42]} 12. e5 {[%clk 0:02:27]}  Bxf3 {[%clk 0:02:33]} 13. gxf3 {[%clk 0:02:25]}  c4 {[%clk 0:02:32]} 14. Be4 {[%clk 0:02:08]}  Qxd2+ {[%clk 0:02:29]} 15. Kxd2 {[%clk 0:02:09]}  Rd8+ {[%clk 0:02:26]} 16. Ke3 {[%clk 0:02:09]}  e6 {[%clk 0:02:25]} 17. Bb7 {[%clk 0:02:04]}  Ne7 {[%clk 0:02:20]} 18. Rhd1 {[%clk 0:01:36]}  Nf5+ {[%clk 0:02:18]} 19. Ke4 {[%clk 0:01:31]}  O-O {[%clk 0:02:06]} 20. Bxa6 {[%clk 0:01:27]}  b4 {[%clk 0:01:58]} 21. Ne2 {[%clk 0:01:26]}  g5 {[%clk 0:01:19]} 22. Bxc4 {[%clk 0:01:18]}  gxf4 {[%clk 0:01:17]} 23. Nxf4 {[%clk 0:01:14]}  Rc8 {[%clk 0:01:16]} 24. Bb3 {[%clk 0:01:06]}  Rc5 {[%clk 0:01:15]} 25. Nd3 {[%clk 0:01:00]}  Ra5 {[%clk 0:01:09]} 26. f4 {[%clk 0:00:57]}  Rd8 {[%clk 0:00:56]} 27. Nxb4 {[%clk 0:00:56]}  Rc8 {[%clk 0:00:50]} 28. Rd7 {[%clk 0:00:51]}  Bf8 {[%clk 0:00:44]} 29. Nd5 {[%clk 0:00:42]}  Nd6+ {[%clk 0:00:35]} 30. exd6 {[%clk 0:00:39]}  exd5+ {[%clk 0:00:34]} 31. Kd3 {[%clk 0:00:25]}  Bg7 {[%clk 0:00:17]} 32. c3 {[%clk 0:00:21]}  Rc6 {[%clk 0:00:12]} 33. Re1 {[%clk 0:00:18]}  Ra8 {[%clk 0:00:07]} 34. Ree7 {[%clk 0:00:16]} 1-0


[Site "https://www.chess.com"]

[Event "Titled Tuesday Blitz May 03 Early 2022"]
[White "Andreev, Eduard"]
[Black "Polster, Christian"]
[WhiteFideId "14103400"]
[BlackFideId "12965081"]
[WhiteElo "2382"]
[BlackElo "2293"]
[Result "1-0"]
[Round "03"]
[TimeControl "180+1"]
[Date "2022.05.03"]
[WhiteClock "0:00:40"]
[BlackClock "0:00:02"]

1. e4 {[%clk 0:03:00]}  c5 {[%clk 0:02:57]} 2. Nf3 {[%clk 0:03:00]}  d6 {[%clk 0:02:57]} 3. d4 {[%clk 0:03:00]}  cxd4 {[%clk 0:02:58]} 4. Nxd4 {[%clk 0:03:00]}  Nf6 {[%clk 0:02:58]} 5. Nc3 {[%clk 0:03:00]}  a6 {[%clk 0:02:58]} 6. f3 {[%clk 0:02:59]}  e5 {[%clk 0:02:56]} 7. Nb3 {[%clk 0:02:58]}  Be6 {[%clk 0:02:56]} 8. Be3 {[%clk 0:02:58]}  Be7 {[%clk 0:02:55]} 9. Qd2 {[%clk 0:02:58]}  O-O {[%clk 0:02:52]} 10. O-O-O {[%clk 0:02:55]}  Nbd7 {[%clk 0:02:52]} 11. g4 {[%clk 0:02:55]}  b5 {[%clk 0:02:51]} 12. g5 {[%clk 0:02:54]}  b4 {[%clk 0:02:52]} 13. gxf6 {[%clk 0:02:54]}  bxc3 {[%clk 0:02:48]} 14. Qxc3 {[%clk 0:02:54]}  Nxf6 {[%clk 0:02:46]} 15. Na5 {[%clk 0:02:54]}  Qd7 {[%clk 0:02:38]} 16. Nc6 {[%clk 0:02:53]}  Rfc8 {[%clk 0:02:37]} 17. Nxe7+ {[%clk 0:02:52]}  Qxe7 {[%clk 0:02:38]} 18. Qa3 {[%clk 0:02:49]}  Qc7 {[%clk 0:02:25]} 19. Rd2 {[%clk 0:02:39]}  d5 {[%clk 0:02:22]} 20. Bg5 {[%clk 0:02:35]}  Nd7 {[%clk 0:01:50]} 21. Rg1 {[%clk 0:02:31]}  dxe4 {[%clk 0:01:43]} 22. fxe4 {[%clk 0:02:30]}  Nc5 {[%clk 0:01:23]} 23. Qe3 {[%clk 0:02:22]}  Bxa2 {[%clk 0:01:16]} 24. Bf6 {[%clk 0:02:07]}  Nb3+ {[%clk 0:00:55]} 25. Kd1 {[%clk 0:02:06]}  Nxd2 {[%clk 0:00:55]} 26. Rxg7+ {[%clk 0:02:02]}  Kf8 {[%clk 0:00:55]} 27. Qxd2 {[%clk 0:01:47]}  Rd8 {[%clk 0:00:12]} 28. Bd3 {[%clk 0:01:46]}  Rd6 {[%clk 0:00:10]} 29. Qg5 {[%clk 0:01:36]}  Rxf6 {[%clk 0:00:07]} 30. Qxf6 {[%clk 0:01:33]}  Rd8 {[%clk 0:00:07]} 31. Qh6 {[%clk 0:01:15]}  Ke8 {[%clk 0:00:06]} 32. Rg8+ {[%clk 0:01:08]}  Ke7 {[%clk 0:00:06]} 33. Rxd8 {[%clk 0:01:02]}  Qxd8 {[%clk 0:00:07]} 34. Qxa6 {[%clk 0:01:01]}  Be6 {[%clk 0:00:05]} 35. Qa7+ {[%clk 0:01:00]}  Kf6 {[%clk 0:00:05]} 36. Qf2+ {[%clk 0:01:00]}  Kg7 {[%clk 0:00:03]} 37. Qg3+ {[%clk 0:00:59]}  Kf8 {[%clk 0:00:02]} 38. Qxe5 {[%clk 0:00:59]}  Qh4 {[%clk 0:00:02]} 39. Qb8+ {[%clk 0:00:52]}  Kg7 {[%clk 0:00:02]} 40. Qg3+ {[%clk 0:00:51]}  Qxg3 {[%clk 0:00:02]} 41. hxg3 {[%clk 0:00:51]}  Kf6 {[%clk 0:00:03]} 42. Kd2 {[%clk 0:00:50]}  Kg5 {[%clk 0:00:03]} 43. Ke3 {[%clk 0:00:50]}  Kg4 {[%clk 0:00:04]} 44. Kf2 {[%clk 0:00:50]}  h5 {[%clk 0:00:02]} 45. b4 {[%clk 0:00:48]}  h4 {[%clk 0:00:02]} 46. gxh4 {[%clk 0:00:48]}  Kxh4 {[%clk 0:00:03]} 47. b5 {[%clk 0:00:48]}  Bc8 {[%clk 0:00:02]} 48. c4 {[%clk 0:00:47]}  Kg5 {[%clk 0:00:02]} 49. Ke3 {[%clk 0:00:46]}  Kf6 {[%clk 0:00:02]} 50. Kd4 {[%clk 0:00:46]}  Ke7 {[%clk 0:00:03]} 51. c5 {[%clk 0:00:46]}  Kd7 {[%clk 0:00:03]} 52. Bc4 {[%clk 0:00:44]}  f6 {[%clk 0:00:03]} 53. Bd5 {[%clk 0:00:42]}  Kc7 {[%clk 0:00:02]} 54. b6+ {[%clk 0:00:41]}  Kb8 {[%clk 0:00:02]} 55. c6 {[%clk 0:00:41]}  f5 {[%clk 0:00:02]} 56. c7# {[%clk 0:00:40]} 1-0


[Site "https://www.chess.com"]

[Event "Titled Tuesday Blitz May 03 Early 2022"]
[White "Aslanov, Umid"]
[Black "Jakubiec, Artur"]
[WhiteFideId "13412620"]
[BlackFideId "1103261"]
[WhiteElo "1796"]
[BlackElo "2473"]
[Result "1/2-1/2"]
[Round "03"]
[TimeControl "180+1"]
[Date "2022.05.03"]
[WhiteClock "0:00:23"]
[BlackClock "0:00:30"]

1. e4 {[%clk 0:03:00]}  c5 {[%clk 0:02:59]} 2. Nf3 {[%clk 0:03:01]}  Nc6 {[%clk 0:02:59]} 3. d4 {[%clk 0:03:01]}  cxd4 {[%clk 0:03:00]} 4. Nxd4 {[%clk 0:03:02]}  e5 {[%clk 0:02:59]} 5. Nb5 {[%clk 0:03:03]}  d6 {[%clk 0:02:59]} 6. Bg5 {[%clk 0:03:03]}  Nf6 {[%clk 0:02:47]} 7. N1c3 {[%clk 0:02:57]}  a6 {[%clk 0:02:45]} 8. Na3 {[%clk 0:02:57]}  b5 {[%clk 0:02:45]} 9. Nd5 {[%clk 0:02:58]}  Be7 {[%clk 0:02:45]} 10. Bxf6 {[%clk 0:02:57]}  Bxf6 {[%clk 0:02:46]} 11. c3 {[%clk 0:02:58]}  Rb8 {[%clk 0:02:45]} 12. Nc2 {[%clk 0:02:57]}  Bg5 {[%clk 0:02:45]} 13. a4 {[%clk 0:02:50]}  bxa4 {[%clk 0:02:44]} 14. Rxa4 {[%clk 0:02:50]}  Rxb2 {[%clk 0:02:37]} 15. Bxa6 {[%clk 0:02:39]}  Bd7 {[%clk 0:02:25]} 16. Bc4 {[%clk 0:02:07]}  Na5 {[%clk 0:02:12]} 17. Ncb4 {[%clk 0:01:55]}  Nxc4 {[%clk 0:02:08]} 18. Ra8 {[%clk 0:01:55]}  Bc8 {[%clk 0:01:25]} 19. Nd3 {[%clk 0:01:22]}  Rd2 {[%clk 0:01:09]} 20. Qa4+ {[%clk 0:01:21]}  Qd7 {[%clk 0:01:09]} 21. Qxc4 {[%clk 0:01:21]}  O-O {[%clk 0:01:06]} 22. f4 {[%clk 0:00:50]}  Qg4 {[%clk 0:00:54]} 23. Kxd2 {[%clk 0:00:37]}  Qxg2+ {[%clk 0:00:54]} 24. Nf2 {[%clk 0:00:37]}  Qxf2+ {[%clk 0:00:52]} 25. Qe2 {[%clk 0:00:37]}  Bxf4+ {[%clk 0:00:51]} 26. Nxf4 {[%clk 0:00:37]}  Qxf4+ {[%clk 0:00:50]} 27. Qe3 {[%clk 0:00:37]}  Qxe3+ {[%clk 0:00:46]} 28. Kxe3 {[%clk 0:00:38]}  Be6 {[%clk 0:00:47]} 29. Ra6 {[%clk 0:00:36]}  Rc8 {[%clk 0:00:46]} 30. Rc1 {[%clk 0:00:33]}  d5 {[%clk 0:00:43]} 31. exd5 {[%clk 0:00:33]}  Bxd5 {[%clk 0:00:43]} 32. c4 {[%clk 0:00:34]}  Bc6 {[%clk 0:00:42]} 33. c5 {[%clk 0:00:32]}  Kf8 {[%clk 0:00:43]} 34. Rb6 {[%clk 0:00:29]}  Ke7 {[%clk 0:00:42]} 35. Ra1 {[%clk 0:00:29]}  Rc7 {[%clk 0:00:42]} 36. Raa6 {[%clk 0:00:28]}  Bd5 {[%clk 0:00:41]} 37. Ra5 {[%clk 0:00:25]}  Be6 {[%clk 0:00:38]} 38. Rba6 {[%clk 0:00:22]}  Bd7 {[%clk 0:00:31]} 39. Rb6 {[%clk 0:00:22]}  Bc6 {[%clk 0:00:30]} 40. Raa6 {[%clk 0:00:23]}  Bd5 {[%clk 0:00:30]} 41. Ra5 {[%clk 0:00:23]}  Bc6 {[%clk 0:00:30]} 42. Raa6 {[%clk 0:00:23]} 1/2-1/2


[Site "https://www.chess.com"]

[Event "Titled Tuesday Blitz May 03 Early 2022"]
[White "Avramidou, Anastasia"]
[Black "Cunjalo, Faris"]
[WhiteFideId "4239873"]
[BlackFideId "14410710"]
[WhiteElo "2183"]
[BlackElo "2263"]
[Result "1-0"]
[Round "03"]
[TimeControl "180+1"]
[Date "2022.05.03"]
[WhiteClock "0:00:15"]
[BlackClock "0:00:02"]

1. Nf3 {[%clk 0:03:00]}  c5 {[%clk 0:02:56]} 2. c4 {[%clk 0:02:57]}  Nc6 {[%clk 0:02:54]} 3. Nc3 {[%clk 0:02:58]}  g6 {[%clk 0:02:50]} 4. g3 {[%clk 0:02:56]}  Bg7 {[%clk 0:02:50]} 5. Bg2 {[%clk 0:02:56]}  e6 {[%clk 0:02:49]} 6. O-O {[%clk 0:02:56]}  Nge7 {[%clk 0:02:50]} 7. a3 {[%clk 0:02:53]}  O-O {[%clk 0:02:49]} 8. Rb1 {[%clk 0:02:52]}  d5 {[%clk 0:02:48]} 9. cxd5 {[%clk 0:02:52]}  exd5 {[%clk 0:02:49]} 10. b4 {[%clk 0:02:40]}  d4 {[%clk 0:02:46]} 11. Ne4 {[%clk 0:02:36]}  c4 {[%clk 0:02:37]} 12. b5 {[%clk 0:02:29]}  Na5 {[%clk 0:02:34]} 13. Qa4 {[%clk 0:02:26]}  b6 {[%clk 0:02:23]} 14. d3 {[%clk 0:02:09]}  Bb7 {[%clk 0:02:15]} 15. Bf4 {[%clk 0:02:01]}  c3 {[%clk 0:02:10]} 16. Be5 {[%clk 0:01:51]}  Bxe4 {[%clk 0:01:43]} 17. dxe4 {[%clk 0:01:50]}  Bxe5 {[%clk 0:01:43]} 18. Nxe5 {[%clk 0:01:51]}  Rc8 {[%clk 0:01:11]} 19. Rbd1 {[%clk 0:01:25]}  c2 {[%clk 0:00:51]} 20. Rc1 {[%clk 0:01:21]}  Qc7 {[%clk 0:00:37]} 21. Nc6 {[%clk 0:00:44]}  Nexc6 {[%clk 0:00:26]} 22. Rxc2 {[%clk 0:00:44]}  Qd7 {[%clk 0:00:09]} 23. bxc6 {[%clk 0:00:44]}  Rxc6 {[%clk 0:00:10]} 24. Rxc6 {[%clk 0:00:43]}  Qxc6 {[%clk 0:00:11]} 25. Qxd4 {[%clk 0:00:43]}  Rc8 {[%clk 0:00:09]} 26. e5 {[%clk 0:00:43]}  Qc3 {[%clk 0:00:09]} 27. Qd7 {[%clk 0:00:21]}  Rc7 {[%clk 0:00:09]} 28. Qd8+ {[%clk 0:00:20]}  Kg7 {[%clk 0:00:09]} 29. Qf6+ {[%clk 0:00:21]}  Kg8 {[%clk 0:00:10]} 30. Bd5 {[%clk 0:00:18]}  Qc5 {[%clk 0:00:06]} 31. Rd1 {[%clk 0:00:16]}  Qe7 {[%clk 0:00:01]} 32. Bxf7+ {[%clk 0:00:15]}  Qxf7 {[%clk 0:00:02]} 33. Rd8+ {[%clk 0:00:15]} 1-0


[Site "https://www.chess.com"]